fUSD/lending_fUSD_20250510
["ID","MTS","AMOUNT","RATE_DAILY","PERIOD"]
[360612120,1746902701891,-150.0,0.00042553,30]
[360612121,1746902701917,-154.5111698,0.00042576,30]
[360612122,1746902701942,-183.84259872,0.00042576,30]
[360612123,1746902701967,-150.0,0.00042583,30]
[360612124,1746902701993,-150.0,0.00042583,30]
[360612125,1746902702019,-150.0,0.00042616,120]
[360612126,1746902702045,-150.0,0.00042616,30]
[360612127,1746902702070,-150.0,0.00042616,30]
[360612128,1746902702096,-154.5111698,0.00042623,30]
[360612129,1746902702126,-183.84259872,0.00042623,30]
[360612130,1746902702155,-150.0,0.00042623,30]
[360612131,1746902702182,-150.0,0.00042634,30]
[360612132,1746902702209,-150.0,0.00042656,120]
[360612133,1746902702236,-154.5111698,0.0004267,30]
[360612134,1746902702264,-183.84259872,0.0004267,30]
[360612135,1746902702291,-1237.25223,0.00042688,30]
[360612136,1746902702321,-150.0,0.00042694,30]
[360612137,1746902702347,-150.0,0.00042694,30]
[360612138,1746902702374,-154.5111698,0.00042717,30]
[360612139,1746902702401,-183.84259872,0.00042717,30]
[360612140,1746902702427,-150.0,0.00042719,120]
[360612141,1746902702453,-150.0,0.00042733,30]
[360612142,1746902702479,-3000.0,0.00042739,60]
[360612143,1746902702506,-900.0,0.00042739,60]
[360612144,1746902702532,-150.0,0.00042749,30]
[360612145,1746902702564,-154.5111698,0.00042764,30]
[360612146,1746902702590,-183.84259872,0.00042764,30]
[360612147,1746902702618,-150.0,0.00042764,30]
[360612148,1746902702643,-150.0,0.00042764,30]
[360612149,1746902702671,-150.0,0.00042766,120]
[360612150,1746902702696,-150.0,0.00042768,120]
[360612151,1746902702721,-150.0,0.00042771,30]
[360612152,1746902702747,-764.95387706,0.00042795,90]
[360612153,1746902702772,-1575.56306116,0.000428,120]
[360612154,1746902702796,-154.5111698,0.00042811,30]
[360612155,1746902702821,-183.84259872,0.00042811,30]
[360612156,1746902702847,-150.0,0.00042813,30]
[360612157,1746902702872,-150.0,0.00042835,30]
[360612158,1746902702899,-150.0,0.00042849,30]
[360612159,1746902702925,-150.0,0.00042849,30]
[360612160,1746902702954,-154.5111698,0.00042858,30]
[360612161,1746902702981,-183.84259872,0.00042858,30]
[360612162,1746902703189,-150.0,0.00042876,120]
[360612163,1746902703219,-3450.96893395,0.0004288,120]
[360612164,1746902703246,-1237.25223,0.00042888,30]
[360612165,1746902703275,-154.5111698,0.00042905,30]
[360612166,1746902703304,-183.84259872,0.00042905,30]
[360612167,1746902703332,-150.0,0.00042905,30]
[360612168,1746902703359,-150.0,0.00042916,30]
[360612169,1746902703388,-150.0,0.00042916,30]
[360612170,1746902703413,-150.0,0.00042916,30]
[360612171,1746902703439,-150.0,0.00042916,30]
[360612172,1746902703467,-150.0,0.00042916,30]
[360612173,1746902703498,-1172.5488738,0.00042916,30]
[360612174,1746902703525,-720.46407811,0.00042916,30]
[360612175,1746902703551,-1102.50278412,0.00042916,30]
[360612176,1746902703578,-11775.85996367,0.00042916,30]
[360612177,1746902703604,-803.31,0.00042921,30]
[360612178,1746902703633,-457.06,0.00042921,30]
[360612179,1746902703659,-150.0,0.00042927,30]
[360612180,1746902703686,-154.5111698,0.00042953,30]
[360612181,1746902703717,-183.84259872,0.00042953,30]
[360612182,1746902703745,-150.0,0.00042965,30]
[360612183,1746902703773,-150.0,0.00042976,30]
[360612184,1746902703799,-150.0,0.00042992,30]
[360612185,1746902703826,-154.5111698,0.00043,30]
[360612186,1746902703851,-183.84259872,0.00043,30]
[360612187,1746902703885,-160.0,0.00043,46]
[360612188,1746902703917,-900.0,0.00043,44]
[360612189,1746902703946,-3000.00774218,0.00043,30]
[360612190,1746902703973,-272.7364429,0.00043,120]
[360612191,1746902704001,-30444.0,0.00043,120]
[360612192,1746902704032,-742.12,0.00043,120]
[360612193,1746902704059,-697.41,0.00043,120]
[360612194,1746902704087,-150.0,0.00043004,30]
[360612195,1746902704118,-154.5111698,0.00043047,30]
[360612196,1746902704150,-183.84259872,0.00043047,30]
[360612197,1746902704181,-150.0,0.00043047,30]
[360612198,1746902704211,-150.0,0.0004308,120]
[360612199,1746902704241,-150.0,0.00043082,30]
[360612200,1746902704270,-150.0,0.00043082,30]
[360612201,1746902704303,-150.0,0.00043082,30]
[360612202,1746902704331,-150.0,0.00043082,30]
[360612203,1746902704362,-150.0,0.00043082,30]
[360612204,1746902704391,-1237.25223,0.00043088,30]
[360612205,1746902704423,-154.5111698,0.00043094,30]
[360612206,1746902704450,-183.84259872,0.00043094,30]
[360612207,1746902704478,-150.0,0.00043117,30]
[360612208,1746902704507,-154.5111698,0.00043141,30]
[360612209,1746902704537,-183.84259872,0.00043141,30]
[360612210,1746902704567,-150.0,0.0004316,30]
[360612211,1746902704595,-150.0,0.00043171,30]
[360612212,1746902704623,-154.5111698,0.00043188,30]
[360612213,1746902704654,-183.84259872,0.00043188,30]
[360612214,1746902704681,-150.0,0.00043188,30]
[360612215,1746902704708,-150.0,0.00043188,30]
[360612216,1746902704734,-150.0,0.00043198,30]
[360612217,1746902704762,-150.0,0.00043212,120]
[360612218,1746902704790,-154.5111698,0.00043235,30]
[360612219,1746902704818,-183.84259872,0.00043235,30]
[360612220,1746902704845,-150.0,0.00043237,30]
[360612221,1746902704871,-150.0,0.00043248,30]
[360612222,1746902704900,-150.0,0.00043248,30]
[360612223,1746902704926,-150.0,0.00043258,30]
[360612224,1746902704953,-154.5111698,0.00043282,30]
[360612225,1746902704982,-183.84259872,0.00043282,30]
[360612226,1746902705010,-348.94,0.00043282,120]
[360612227,1746902705037,-1237.25223,0.00043288,30]
[360612228,1746902705065,-150.0,0.00043315,30]
[360612229,1746902705092,-150.0,0.00043315,30]
[360612230,1746902705120,-154.5111698,0.00043329,30]
[360612231,1746902705149,-183.84259872,0.00043329,30]
[360612232,1746902705176,-150.0,0.00043329,30]
[360612233,1746902705206,-150.0,0.00043351,30]
[360612234,1746902705233,-154.5111698,0.00043376,30]
[360612235,1746902705269,-183.84259872,0.00043376,30]
[360612236,1746902705303,-150.0,0.00043381,120]
[360612237,1746902705341,-150.0,0.00043392,30]
[360612238,1746902705368,-150.0,0.00043399,30]
[360612239,1746902705395,-6485.53983814,0.000434,120]
[360612240,1746902705421,-150.0,0.00043415,30]
[360612241,1746902705449,-154.5111698,0.00043423,30]
[360612242,1746902705477,-183.84259872,0.00043423,30]
[360612243,1746902705503,-150.0,0.00043431,30]
[360612244,1746902705530,-4894.96692062,0.00043465,30]
[360612245,1746902705557,-1495.95232675,0.00043466,30]
[360612246,1746902705586,-825.10523778,0.00043469,30]
[360612247,1746902705612,-689.50356218,0.00043469,30]
[360612248,1746902705640,-150.0,0.0004347,30]
[360612249,1746902705667,-154.5111698,0.0004347,30]
[360612250,1746902705695,-183.84259872,0.0004347,30]
[360612251,1746902705722,-150.0,0.0004347,30]
[360612252,1746902705750,-1495.95232675,0.00043471,30]
[360612253,1746902705776,-6910.56366834,0.00043473,30]
[360612254,1746902705803,-6910.56366834,0.00043476,30]
[360612255,1746902705832,-1237.67223979,0.00043478,30]
[360612256,1746902705859,-2556.0,0.00043478,43]
[360612257,1746902705887,-33613.70594211,0.00043479,30]
[360612258,1746902705914,-1493.00915971,0.00043479,30]
[360612259,1746902705942,-150.0,0.00043481,120]
[360612260,1746902705969,-1357.20078177,0.00043484,30]
[360612261,1746902705996,-1237.25223,0.00043488,30]
[360612262,1746902706024,-1493.00915971,0.0004349,30]
[360612263,1746902706052,-779.50327139,0.00043492,30]
[360612264,1746902706080,-6910.56366834,0.00043493,30]
[360612265,1746902706109,-33613.70594211,0.00043495,30]
[360612266,1746902706314,-307.32,0.00043498,30]
[360612267,1746902706340,-162.5,0.00043498,30]
[360612268,1746902706369,-150.06,0.00043498,30]
[360612269,1746902706400,-352.66,0.00043498,30]
[360612270,1746902706428,-2328.0,0.00043498,30]
[360612271,1746902706457,-306.84857441,0.000435,30]
[360612272,1746902706487,-4894.96692062,0.000435,30]
[360612273,1746902706517,-411.30434,0.000435,120]
[360612274,1746902706545,-160.0,0.000435,48]
[360612275,1746902706574,-779.50327139,0.00043503,30]
[360612276,1746902706601,-1495.95232675,0.00043504,30]
[360612277,1746902706629,-1237.67223979,0.00043506,30]
[360612278,1746902706656,-1493.00915971,0.00043506,30]
[360612279,1746902706686,-4894.96692062,0.00043507,30]
[360612280,1746902706713,-1058.58111387,0.00043515,30]
[360612281,1746902706749,-825.10523778,0.00043516,30]
[360612282,1746902706781,-154.5111698,0.00043517,30]
[360612283,1746902706809,-183.84259872,0.00043517,30]
[360612284,1746902706837,-425.64811184,0.00043517,30]
[360612285,1746902706865,-33613.70594211,0.00043522,30]
[360612286,1746902706895,-1357.20078177,0.00043525,30]
[360612287,1746902706923,-773.50606133,0.00043527,30]
[360612288,1746902706952,-1357.20078177,0.00043527,30]
[360612289,1746902706980,-1237.67223979,0.0004353,30]
[360612290,1746902707008,-150.0,0.0004353,30]
[360612291,1746902707035,-1058.58111387,0.00043531,30]
[360612292,1746902707063,-773.50606133,0.00043536,30]
[360612293,1746902707090,-329.95998082,0.00043537,30]
[360612294,1746902707117,-150.0,0.00043539,120]
[360612295,1746902707143,-150.0,0.00043541,30]
[360612296,1746902707171,-689.50356218,0.00043547,30]
[360612297,1746902707197,-150.0,0.00043548,30]
[360612298,1746902707223,-150.0,0.00043548,30]
[360612299,1746902707249,-1058.58111387,0.00043549,30]
[360612300,1746902707275,-154.5111698,0.00043564,30]
[360612301,1746902707310,-183.84259872,0.00043564,30]
[360612302,1746902707337,-150.0,0.00043581,30]
[360612303,1746902707364,-2655.38,0.000436,120]
[360612304,1746902707391,-1873.1,0.000436,120]
[360612305,1746902707416,-3212.18,0.000436,120]
[360612306,1746902707443,-154.5111698,0.00043611,30]
[360612307,1746902707470,-183.84259872,0.00043611,30]
[360612308,1746902707496,-150.0,0.00043611,30]
[360612309,1746902707523,-150.0,0.00043611,30]
[360612310,1746902707549,-150.0,0.00043625,30]
[360612311,1746902707577,-2000.0,0.00043636,120]
[360612312,1746902707604,-154.5111698,0.00043658,30]
[360612313,1746902707634,-183.84259872,0.00043658,30]
[360612314,1746902707662,-150.0,0.00043664,30]
[360612315,1746902707688,-150.0,0.00043664,30]
[360612316,1746902707716,-150.0,0.00043682,30]
[360612317,1746902707744,-1237.25223,0.00043688,30]
[360612318,1746902707810,-1568.60081686,0.000437,120]
[360612319,1746902707837,-150.0,0.00043703,30]
[360612320,1746902707863,-154.5111698,0.00043705,30]
[360612321,1746902707891,-183.84259872,0.00043705,30]
[360612322,1746902707918,-150.0,0.00043709,30]
[360612323,1746902707945,-150.0,0.00043747,30]
[360612324,1746902707971,-154.5111698,0.00043752,30]
[360612325,1746902707999,-183.84259872,0.00043752,30]
[360612326,1746902708025,-150.0,0.00043752,30]
[360612327,1746902708055,-150.0,0.00043781,30]
[360612328,1746902708082,-150.0,0.00043781,30]
[360612329,1746902708108,-154.5111698,0.00043799,30]
[360612330,1746902708136,-183.84259872,0.00043799,30]
[360612331,1746902708163,-483.65398624,0.000438,30]
[360612332,1746902708190,-686.04124598,0.000438,120]
[360612333,1746902708217,-595.0,0.0004381,120]
[360612334,1746902708244,-150.0,0.00043823,30]
[360612335,1746902708273,-3000.0,0.00043835,120]
[360612336,1746902708303,-900.0,0.00043835,120]
[360612337,1746902708328,-400.0,0.00043835,30]
[360612338,1746902708356,-400.0,0.00043835,30]
[360612339,1746902708383,-267.46569954,0.00043835,30]
[360612340,1746902708411,-154.5111698,0.00043846,30]
[360612341,1746902708442,-183.84259872,0.00043846,30]
[360612342,1746902708471,-150.0,0.00043858,30]
[360612343,1746902708498,-150.0,0.00043888,30]
[360612344,1746902708526,-154.5111698,0.00043893,30]
[360612345,1746902708554,-183.84259872,0.00043893,30]
[360612346,1746902708580,-150.0,0.00043893,30]
[360612347,1746902708607,-150.0,0.00043897,30]
[360612348,1746902708634,-2000.0,0.00043899,30]
[360612349,1746902708660,-150.0,0.00043914,30]
[360612350,1746902708687,-150.0,0.00043914,30]
[360612351,1746902708713,-150.0,0.00043936,30]
[360612352,1746902708740,-154.5111698,0.0004394,30]
[360612353,1746902708767,-183.84259872,0.0004394,30]
[360612354,1746902708794,-150.0,0.00043964,30]
[360612355,1746902708820,-154.5111698,0.00043988,30]
[360612356,1746902708859,-183.84259872,0.00043988,30]
[360612357,1746902708895,-1000.0,0.00044,120]
[360612358,1746902708927,-160.0,0.00044,50]
[360612359,1746902708958,-500.0,0.00044,120]
[360612360,1746902708991,-6053.89178573,0.00044,30]
[360612361,1746902709022,-1360.78,0.00044,120]
[360612362,1746902709057,-2699.52152012,0.00044,120]
[360612363,1746902709090,-900.0,0.00044,45]
[360612364,1746902709121,-20729.98755239,0.00044,120]
[360612365,1746902709150,-150.0,0.00044013,30]
[360612366,1746902709185,-150.0,0.00044013,30]
[360612367,1746902709218,-632.34530921,0.00044016,120]
[360612368,1746902709252,-154.5111698,0.00044035,30]
[360612369,1746902709285,-183.84259872,0.00044035,30]
[360612370,1746902709321,-150.0,0.00044035,30]
[360612371,1746902709358,-150.0,0.00044035,30]
[360612372,1746902709396,-150.0,0.00044039,120]
[360612373,1746902709429,-150.0,0.00044067,30]
[360612374,1746902709464,-150.0,0.0004408,30]
[360612375,1746902709497,-154.5111698,0.00044082,30]
[360612376,1746902709532,-183.84259872,0.00044082,30]
[360612377,1746902709566,-1237.25223,0.00044088,30]
[360612378,1746902709599,-150.0,0.00044091,30]
[360612379,1746902709639,-150.0,0.00044105,30]
[360612380,1746902709674,-154.5111698,0.00044129,30]
[360612381,1746902709707,-183.84259872,0.00044129,30]
[360612382,1746902709738,-150.0,0.0004413,30]
[360612383,1746902709769,-1817.09,0.00044136,120]
[360612384,1746902709801,-1817.09,0.00044136,120]
[360612385,1746902709838,-1817.09,0.00044136,120]
[360612386,1746902709868,-1817.09,0.00044136,120]
[360612387,1746902709898,-1817.09,0.00044136,120]
[360612388,1746902709937,-1817.09,0.00044136,120]
[360612389,1746902709975,-1817.09,0.00044136,120]
[360612390,1746902710005,-1817.09,0.00044136,120]
[360612391,1746902710036,-1817.09,0.00044136,120]
[360612392,1746902710066,-1817.09,0.00044136,120]
[360612393,1746902710097,-1817.09,0.00044136,120]
[360612394,1746902710128,-1817.09,0.00044136,120]
[360612395,1746902710161,-1817.09,0.00044136,120]
[360612396,1746902710192,-1817.09,0.00044136,120]
[360612397,1746902710224,-1817.09,0.00044136,120]
[360612398,1746902710255,-1817.09,0.00044136,120]
[360612399,1746902710287,-1817.09,0.00044136,120]
[360612400,1746902710322,-1817.09,0.00044136,120]
[360612401,1746902710354,-1817.09,0.00044136,120]
[360612402,1746902710387,-1817.09,0.00044136,120]
[360612403,1746902710419,-1817.09,0.00044136,120]
[360612404,1746902710451,-1817.09,0.00044136,120]
[360612405,1746902710482,-1817.09,0.00044136,120]
[360612406,1746902710513,-1817.25899625,0.00044136,120]
[360612407,1746902710544,-1295.12,0.00044136,120]
[360612408,1746902710574,-1295.12,0.00044136,120]
[360612409,1746902710603,-1295.12,0.00044136,120]
[360612410,1746902710635,-1295.12,0.00044136,120]
[360612411,1746902710666,-1295.12,0.00044136,120]
[360612412,1746902710697,-1295.12,0.00044136,120]
[360612413,1746902710729,-1295.12,0.00044136,120]
[360612414,1746902710761,-1295.12,0.00044136,120]
[360612415,1746902710793,-1295.12,0.00044136,120]
[360612416,1746902710823,-1295.12,0.00044136,120]
[360612417,1746902710855,-1295.12,0.00044136,120]
[360612418,1746902710887,-1295.12,0.00044136,120]
[360612419,1746902710919,-1295.12,0.00044136,120]
[360612420,1746902710951,-1295.12,0.00044136,120]
[360612421,1746902710983,-1295.12,0.00044136,120]
[360612422,1746902711016,-1295.12,0.00044136,120]
[360612423,1746902711054,-1295.12,0.00044136,120]
[360612424,1746902711091,-1295.12,0.00044136,120]
[360612425,1746902711136,-1295.12,0.00044136,120]
[360612426,1746902711167,-1295.12,0.00044136,120]
[360612427,1746902711199,-1295.12,0.00044136,120]
[360612428,1746902711230,-1295.12,0.00044136,120]
[360612429,1746902711263,-1295.12,0.00044136,120]
[360612430,1746902711296,-1295.25231882,0.00044136,120]
[360612431,1746902711330,-150.0,0.00044156,120]
[360612432,1746902711361,-150.0,0.00044169,30]
[360612433,1746902711394,-154.5111698,0.00044176,30]
[360612434,1746902711423,-183.84259872,0.00044176,30]
[360612435,1746902711456,-150.0,0.00044176,30]
[360612436,1746902711487,-154.5111698,0.00044223,30]
[360612437,1746902711516,-183.84259872,0.00044223,30]
[360612438,1746902711546,-1075.0,0.00044246,30]
[360612439,1746902711576,-150.0,0.00044246,30]
[360612440,1746902711606,-150.0,0.00044246,30]
[360612441,1746902711637,-150.0,0.00044246,30]
[360612442,1746902711667,-150.0,0.00044246,30]
[360612443,1746902711696,-150.0,0.00044246,30]
[360612444,1746902711726,-150.0,0.00044246,30]
[360612445,1746902711756,-150.0,0.00044246,30]
[360612446,1746902711787,-150.0,0.00044246,30]
[360612447,1746902711817,-150.0,0.00044246,30]
[360612448,1746902711846,-154.5111698,0.0004427,30]
[360612449,1746902711875,-183.84259872,0.0004427,30]
[360612450,1746902711906,-152.16,0.00044281,30]
[360612451,1746902712290,-150.0,0.00044281,30]
[360612452,1746902712331,-150.0,0.00044281,30]
[360612453,1746902712363,-1237.25223,0.00044288,30]
[360612454,1746902712393,-150.0,0.00044291,30]
[360612455,1746902712422,-1156.1,0.00044291,30]
[360612456,1746902712453,-154.5111698,0.00044317,30]
[360612457,1746902712481,-183.84259872,0.00044317,30]
[360612458,1746902712508,-150.0,0.00044317,30]
[360612459,1746902712536,-150.0,0.00044324,30]
[360612460,1746902712566,-150.0,0.00044359,120]
[360612461,1746902712594,-150.0,0.00044363,30]
[360612462,1746902712623,-154.5111698,0.00044364,30]
[360612463,1746902712655,-183.84259872,0.00044364,30]
[360612464,1746902712685,-3000.0,0.00044383,120]
[360612465,1746902712714,-900.0,0.00044383,120]
[360612466,1746902712743,-150.0,0.00044387,30]
[360612467,1746902712772,-150.0,0.00044393,120]
[360612468,1746902712802,-150.0,0.00044402,30]
[360612469,1746902712832,-154.5111698,0.00044411,30]
[360612470,1746902712860,-183.84259872,0.00044411,30]
[360612471,1746902712890,-150.0,0.00044413,30]
[360612472,1746902712920,-150.0,0.00044425,30]
[360612473,1746902712950,-150.0,0.00044446,120]
[360612474,1746902712979,-154.5111698,0.00044458,30]
[360612475,1746902713010,-183.84259872,0.00044458,30]
[360612476,1746902713039,-150.0,0.00044458,30]
[360612477,1746902713068,-150.0,0.00044458,30]
[360612478,1746902713097,-150.0,0.00044479,30]
[360612479,1746902713126,-150.0,0.00044479,30]
[360612480,1746902713158,-1237.25223,0.00044488,30]
[360612481,1746902713189,-411.30434,0.000445,120]
[360612482,1746902713220,-160.0,0.000445,52]
[360612483,1746902713250,-150.0,0.00044501,120]
[360612484,1746902713279,-154.5111698,0.00044505,30]
[360612485,1746902713309,-183.84259872,0.00044505,30]
[360612486,1746902713338,-150.0,0.00044529,30]
[360612487,1746902713366,-154.5111698,0.00044552,30]
[360612488,1746902713398,-183.84259872,0.00044552,30]
[360612489,1746902713428,-150.0,0.00044557,30]
[360612490,1746902713457,-150.0,0.00044579,30]
[360612491,1746902713485,-150.0,0.00044579,30]
[360612492,1746902713514,-150.0,0.00044596,30]
[360612493,1746902713543,-154.5111698,0.00044599,30]
[360612494,1746902713571,-183.84259872,0.00044599,30]
[360612495,1746902713599,-150.0,0.00044599,30]
[360612496,1746902713628,-150.0,0.00044601,120]
[360612497,1746902713657,-425.88003456,0.00044603,120]
[360612498,1746902713685,-150.0,0.00044605,30]
[360612499,1746902713921,-150.0,0.00044634,30]
[360612500,1746902713952,-154.5111698,0.00044646,30]
[360612501,1746902713982,-183.84259872,0.00044646,30]
[360612502,1746902714010,-348.94,0.00044652,120]
[360612503,1746902714039,-150.0,0.0004467,30]
[360612504,1746902714068,-1237.25223,0.00044688,30]
[360612505,1746902714095,-154.5111698,0.00044693,30]
[360612506,1746902714124,-183.84259872,0.00044693,30]
[360612507,1746902714154,-150.0,0.00044694,120]
[360612508,1746902714182,-1112.61073865,0.000447,120]
[360612509,1746902714211,-150.0,0.00044712,30]
[360612510,1746902714240,-150.0,0.00044712,30]
[360612511,1746902714270,-150.0,0.00044728,120]
[360612512,1746902714302,-150.0,0.00044728,120]
[360612513,1746902714331,-154.5111698,0.0004474,30]
[360612514,1746902714359,-183.84259872,0.0004474,30]
[360612515,1746902714388,-150.0,0.0004474,30]
[360612516,1746902714416,-150.0,0.00044745,30]
[360612517,1746902714445,-150.0,0.00044784,30]
[360612518,1746902714516,-154.5111698,0.00044787,30]
[360612519,1746902714544,-183.84259872,0.00044787,30]
[360612520,1746902714575,-150.0,0.0004479,30]
[360612521,1746902714603,-150.0,0.00044811,30]
[360612522,1746902714636,-150.0,0.00044828,30]
[360612523,1746902714664,-150.0,0.00044828,30]
[360612524,1746902714694,-154.5111698,0.00044834,30]
[360612525,1746902714724,-183.84259872,0.00044834,30]
[360612526,1746902714754,-1588.93,0.00044842,30]
[360612527,1746902714782,-457.06,0.00044842,30]
[360612528,1746902714813,-150.0,0.00044859,120]
[360612529,1746902714841,-150.0,0.00044867,120]
[360612530,1746902714870,-150.0,0.00044867,30]
[360612531,1746902714900,-154.5111698,0.00044881,30]
[360612532,1746902714927,-183.84259872,0.00044881,30]
[360612533,1746902714954,-150.0,0.00044881,30]
[360612534,1746902714982,-150.0,0.00044881,30]
[360612535,1746902715015,-1237.25223,0.00044888,30]
[360612536,1746902715043,-361.85575256,0.000449,30]
[360612537,1746902715071,-162.75574888,0.000449,30]
[360612538,1746902715098,-910.85563072,0.000449,120]
[360612539,1746902715124,-150.0,0.00044912,30]
[360612540,1746902715155,-154.5111698,0.00044928,30]
[360612541,1746902715182,-183.84259872,0.00044928,30]
[360612542,1746902715209,-3000.0,0.00044931,120]
[360612543,1746902715236,-900.0,0.00044931,120]
[360612544,1746902715263,-150.0,0.00044945,30]
[360612545,1746902715290,-150.0,0.00044945,30]
[360612546,1746902715319,-150.0,0.00044952,30]
[360612547,1746902715348,-150.0,0.00044957,120]
[360612548,1746902715378,-150.0,0.00044963,30]
[360612549,1746902715406,-154.5111698,0.00044975,30]
[360612550,1746902715433,-183.84259872,0.00044975,30]
[360612551,1746902715458,-621.78829552,0.00044999,45]
[360612552,1746902715485,-644.79446246,0.00044999,54]
[360612553,1746902715513,-160.0,0.00045,54]
[360612554,1746902715540,-500.0,0.00045,120]
[360612555,1746902715566,-539.5151346,0.00045,120]
[360612556,1746902715592,-6687.99,0.00045,120]
[360612557,1746902715619,-6687.99,0.00045,120]
[360612558,1746902715646,-151.0,0.00045,120]
[360612559,1746902715672,-8024.30858484,0.00045,120]
[360612560,1746902715697,-4012.79,0.00045,120]
[360612561,1746902715723,-464.3290987,0.00045,120]
[360612562,1746902715749,-597.59360807,0.00045,120]
[360612563,1746902715774,-3557.34752601,0.00045,120]
[360612564,1746902715800,-197.60778707,0.00045,60]
[360612565,1746902715825,-613.0,0.00045,120]
[360612566,1746902715851,-3024.58828065,0.00045,120]
[360612567,1746902715877,-461.24336362,0.00045,120]
[360612568,1746902715903,-2958.47130844,0.00045,120]
[360612569,1746902715929,-1107.12683962,0.00045,120]
[360612570,1746902715955,-792.57012675,0.00045,30]
[360612571,1746902715980,-391.00727174,0.00045,30]
[360612572,1746902716006,-1727.0,0.00045,120]
[360612573,1746902716032,-29263.90877731,0.00045,30]
[360612574,1746902716058,-30444.0,0.00045,120]
[360612575,1746902716084,-7838.58778669,0.00045,120]
[360612576,1746902716110,-1293.80057516,0.00045,60]
[360612577,1746902716137,-4645.40201191,0.00045,120]
[360612578,1746902716163,-900.0,0.00045,46]
[360612579,1746902716190,-900.0,0.00045,46]
[360612580,1746902716217,-2000.0,0.00045,120]
[360612581,1746902716244,-1748.3753106,0.00045,120]
[360612582,1746902716271,-888.0,0.00045,120]
[360612583,1746902716300,-345861.99474733,0.00045,30]
[360612584,1746902716326,-400.0,0.00045,120]
[360612585,1746902716353,-150.0,0.00045,120]
[360612586,1746902716379,-150.0,0.00045,120]
[360612587,1746902716409,-150.0,0.00045023,30]
[360612588,1746902716437,-154.5111698,0.00045023,30]
[360612589,1746902716465,-183.84259872,0.00045023,30]
[360612590,1746902716492,-150.0,0.00045023,30]
[360612591,1746902716520,-150.0,0.00045034,120]
[360612592,1746902716546,-279.0499199,0.00045056,30]
[360612593,1746902716572,-183.66272588,0.00045056,30]
[360612594,1746902716599,-264.27061298,0.00045056,30]
[360612595,1746902716624,-150.0,0.00045056,30]
[360612596,1746902716649,-2366.2852833,0.00045056,30]
[360612597,1746902716675,-150.0,0.00045061,30]
[360612598,1746902716700,-154.5111698,0.0004507,30]
[360612599,1746902716726,-183.84259872,0.0004507,30]
[360612600,1746902716754,-150.0,0.00045078,30]
[360612601,1746902716780,-1237.25223,0.00045088,30]
[360612602,1746902716805,-150.0,0.00045093,30]
[360612603,1746902716831,-150.0,0.000451,30]
[360612604,1746902716856,-154.5111698,0.00045117,30]
[360612605,1746902716882,-183.84259872,0.00045117,30]
[360612606,1746902716909,-150.0,0.00045123,120]
[360612607,1746902716937,-150.0,0.00045133,120]
[360612608,1746902716962,-2080.734197,0.00045136,120]
[360612609,1746902716987,-150.0,0.00045142,30]
[360612610,1746902717016,-154.5111698,0.00045164,30]
[360612611,1746902717043,-183.84259872,0.00045164,30]
[360612612,1746902717070,-150.0,0.00045164,30]
[360612613,1746902717096,-150.0,0.0004517,120]
[360612614,1746902717122,-150.0,0.00045178,30]
[360612615,1746902717149,-150.0,0.00045178,30]
[360612616,1746902717176,-150.0,0.00045207,120]
[360612617,1746902717201,-243.0,0.0004521,30]
[360612618,1746902717226,-154.5111698,0.00045211,30]
[360612619,1746902717252,-183.84259872,0.00045211,30]